Cogmind - Beta 9.6 @@@ ROGUE MODE // 2020.08.27 @ 18:29:27 Player: Bokkiewokkie Result: Destroyed by G-50 Soldier with Heavy Laser Performance ------------- Evolutions (1) 500 Regions Visited (6) 1200 Robots Destroyed (29) 145 Value Destroyed (580) 580 Prototype IDs (5) 100 Alien Tech Used (0) 0 Bonus (433) 433 TOTAL SCORE: 2958 Bonus ------- Follower Combat Kills 133 Aligned with FarCom 300 Cogmind --------- Core Integrity 0/400 Matter 300/300 Energy 90/100 System Corruption 0% Temperature Cool (-91) Movement Treading (145) Location -8/Mines Parts ------- > --- POWER (1) -------- (None) > --- PROPULSION (3) --- Advanced Treads > --- UTILITY (3) ------ Cryofiber Web Improved Targeting Computer Armor Integrity Analyzer > --- WEAPON (2) ------- Beam Rifle > --- INVENTORY (4) ---- Improved Heat Sink Peak State ------------ > --- POWER ------------ Light Nuclear Core > --- PROPULSION ------- Aluminum Leg Aluminum Leg > --- UTILITY ---------- Cryofiber Web Improved Heat Sink Signal Interpreter > --- WEAPON ----------- Electrolaser Makeshift Sword > --- INVENTORY -------- Rocket Launcher [Rating: 19] Favorites ----------- Power Heavy Ion Engine Engine Heavy Ion Engine Power Core Light Nuclear Core Propulsion Aluminum Leg Treads Advanced Treads Leg Aluminum Leg Hover Unit Hover Unit Flight Unit Flight Unit Utility Signal Interpreter Device Cryofiber Web Processor Signal Interpreter Weapon Makeshift Sword Energy Gun Medium Laser Launcher Rocket Launcher Special Weapon Mining Laser Slashing Weapon Makeshift Sword Build | -11 -10 -10 -9 -9 -9 -8 ------- Run | Scr Mat Min Mat Min Exi Min Slots Evolved 2 | . . . 2 . . . Power . | . . . . . . . Propulsion 1 | . . . 1 . . . Utility 1 | . . . 1 . . . Weapon . | . . . . . . . Parts Attached 39 | 5 7 5 10 3 1 8 Power 5 | 1 . 1 3 . . . Engine 4 | 1 . 1 2 . . . Core 1 | . . . 1 . . . Reactor . | . . . . . . . Propulsion 14 | 2 4 1 3 1 . 3 Treads 1 | . . . . . . 1 Leg 6 | 2 . 1 2 1 . . Wheel . | . . . . . . . Hover 5 | . 4 . 1 . . . Flight 2 | . . . . . . 2 Utility 8 | . 2 1 1 2 1 1 Device 4 | . 1 1 1 . 1 . Storage . | . . . . . . . Processor 4 | . 1 . . 2 . 1 Hackware . | . . . . . . . Protection . | . . . . . . . Artifact . | . . . . . . . Weapon 12 | 2 1 2 3 . . 4 Energy Gun 7 | 2 . . 2 . . 3 Energy Cannon . | . . . . . . . Ballistic Gun . | . . . . . . . Ballistic Cannon . | . . . . . . . Launcher 1 | . . . . . . 1 Special Weapon 3 | . 1 1 1 . . . Impact Weapon . | . . . . . . . Slashing Weapon 1 | . . 1 . . . . Piercing Weapon . | . . . . . . . Special Melee Weapon . | . . . . . . . Unidentified Prototypes 3 | . . . 2 . 1 . Parts Lost 22 | . 1 6 4 . . 11 Power 2 | . . 1 . . . 1 Propulsion 7 | . . 2 1 . . 4 Utility 2 | . . 1 . . . 1 Weapon 11 | . 1 2 3 . . 5 Highest Loss Streak 9 | . 1 5 2 . . 9 Average Slot Usage (%) 84 | . 83 75 79 100 94 79 Engine 10 | . 14 13 1 11 11 8 Core 1 | . . . 8 . . . Leg 16 | . 8 13 16 22 22 12 Hover 8 | . 19 6 1 11 11 5 Device 12 | . 9 13 21 21 5 11 Processor 16 | . 9 14 11 11 22 20 Energy Gun 2 | . 20 . 6 . . . Special Weapon 5 | . . . . 11 11 8 Slashing Weapon 10 | . . 12 11 11 11 8 Naked Turns . | . . . . . . . Heaviest Build 13 | 9 10 9 13 13 12 12 Greatest Support 30 | 20 20 16 30 20 20 22 Greatest Overweight (x) 3 | 1 1 2 3 . . 3 Average Overweight (x) . | . . . . . . . Largest Inventory Capacity 4 | 4 4 4 4 4 4 4 Average Capacity 4 | 4 4 4 4 4 4 4 Most Carried 4 | 1 2 4 4 3 4 3 Average Carried 2 | . 1 2 2 1 3 2 Final Capacity 4 | 4 4 4 4 4 4 4 Final Carried 4 | 1 2 4 1 3 3 1 Class Distribution -------------------- 82% | Mutant 17% | Scavenger-Mutant Dominant Class ---------------- Mutant | -10/Materials Mutant | -10/Mines Mutant | -9/Materials Scavenger-Mutant | -9/Mines Mutant | -9/Exiles Mutant | -8/Mines Resources | -11 -10 -10 -9 -9 -9 -8 ----------- Run | Scr Mat Min Mat Min Exi Min Matter Collected 557 | 243 67 50 95 30 . 72 Remotely . | . . . . . . . Salvage Created 1045 | . 320 252 270 134 . 69 Parts 62 | . 21 18 11 7 . 5 Haulers Intercepted 2 | . 1 . 1 . . . Recyclers Shooed . | . . . . . . . Parts Field Recycled . | . . . . . . . Retrieved Matter . | . . . . . . . Parts Self-Destructed . | . . . . . . . Prevented . | . . . . . . . Kills | -11 -10 -10 -9 -9 -9 -8 ------- Run | Scr Mat Min Mat Min Exi Min Combat Hostiles Destroyed 17 | . 4 4 4 2 . 3 Melee 12 | . . 3 4 2 . 3 Guns 5 | . 4 1 . . . . Classes Destroyed 8 | . 5 2 1 . . . Worker 2 | . . 1 . 1 . . Tunneler 2 | . . 1 . 1 . . Hauler 2 | . 1 . 1 . . . Recycler 2 | . 1 1 . . . . Watcher 4 | . 3 . 1 . . . Swarmer 8 | . 3 2 . . . 3 Grunt 7 | . 1 2 2 2 . . Sentry 2 | . . . 2 . . . Best Kill Streak 6 | . 6 3 3 2 . 1 Combat Bots Only 3 | . 3 2 1 2 . 1 Max Kills in Single Turn 2 | . 2 1 1 1 . 1 Gunslinging . | . . . . . . . Exploded . | . . . . . . . Melee 1 | . . 1 1 1 . 1 Uniques/NPCs Destroyed . | . . . . . . . Combat | -11 -10 -10 -9 -9 -9 -8 -------- Run | Scr Mat Min Mat Min Exi Min Damage Taken 1723 | . 171 302 468 51 . 731 Core 530 | . 37 87 100 12 . 294 Absorbed by Shields . | . . . . . . . Core Remaining (%) 75 | 100 . 50 . . . . Volleys Fired 47 | . 28 6 5 . . 8 Largest 2 | . 2 2 1 . . 1 Hottest 150 | . 100 150 65 . . 56 Shots Fired 63 | . 41 9 5 . . 8 Gun 55 | . 41 3 5 . . 6 Cannon . | . . . . . . . Launcher 2 | . . . . . . 2 Special 6 | . . 6 . . . . Kinetic . | . . . . . . . Thermal 58 | . 41 9 5 . . 3 Explosive 2 | . . . . . . 2 Electromagnetic 3 | . . . . . . 3 Robot Hit Streak 5 | . 5 3 2 . . 5 Robot Miss Streak 4 | . 2 2 4 . . 1 Penetration Max . | . . . . . . . Secondary Targets 1 | . 1 . . . . . Max Gunslinging Chain 1 | . 1 . . . . . Shots Hit Robots 85 | . 26 12 22 8 . 17 Core Hits 41 | . 11 11 7 4 . 8 Critical Hits 1 | . . 1 . . . . Critical Kills 1 | . . 1 . . . . Critical Parts Destroyed . | . . . . . . . Melee Attacks 73 | . . 15 31 9 . 18 Impact . | . . . . . . . Slashing 73 | . . 15 31 9 . 18 Piercing . | . . . . . . . Sneak Attacks 7 | . . 4 1 2 . . Combat Hostiles . | . . . . . . . Follow-up Attacks . | . . . . . . . Damage Inflicted 2987 | . 410 641 807 433 . 696 Guns 486 | . 335 37 32 . . 82 Cannons . | . . . . . . . Explosions 326 | . 75 . . . . 251 Melee 2107 | . . 538 775 433 . 361 Ramming 20 | . . 18 . . . 2 Kinetic . | . . . . . . . Thermal 563 | . 410 85 32 . . 36 Explosive 251 | . . . . . . 251 Electromagnetic 46 | . . . . . . 46 Impact . | . . . . . . . Slashing 2107 | . . 538 775 433 . 361 Piercing . | . . . . . . . Highest Corruption . | . . . . . . . Average Corruption . | . . . . . . . Corruption Purged . | . . . . . . . Overload Shots . | . . . . . . . Overflow Damage 315 | . 35 60 65 104 . 51 Projectiles . | . . . . . . . Explosions 56 | . 35 . . . . 21 Melee 259 | . . 60 65 104 . 30 Knockbacks . | . . . . . . . Impact . | . . . . . . . Kinetic . | . . . . . . . Secondary . | . . . . . . . Self-Inflicted Damage 84 | . . 8 . . . 76 Shots 2 | . . . . . . 2 Rammed 9 | . . 8 . . . 1 Targets Rammed 9 | . . 8 . . . 1 Kicked . | . . . . . . . Crushed . | . . . . . . . Highest Temperature 367 | . 351 367 . . . . Average Temperature 175 | . 162 213 . . . . Received Heat Transfer 546 | . 24 144 189 27 . 162 Effects 6 | . 5 1 . . . . Energy Bleed 2 | . 1 1 . . . . Interference 3 | . 3 . . . . . Damage (minor) 1 | . 1 . . . . . Siege Activations . | . . . . . . . Robots Corrupted . | . . . . . . . Combat Hostiles . | . . . . . . . Parts Fried . | . . . . . . . Impact Corruptions . | . . . . . . . Robots Melted . | . . . . . . . Combat Hostiles . | . . . . . . . Parts Melted 1 | . 1 . . . . . Heat Transferred 1421 | . 1049 211 74 . . 87 Parts Sabotaged . | . . . . . . . Parts Stolen . | . . . . . . . Parts Stripped . | . . . . . . . Power Chain Reactions . | . . . . . . . Missiles Intercepted . | . . . . . . . Alert | -11 -10 -10 -9 -9 -9 -8 ------- Run | Scr Mat Min Mat Min Exi Min Peak Influence 215 | . 192 215 177 82 . 50 Average Influence 55 | . 129 62 48 67 . 12 Maximum Alert Level 1 | . . 1 . . . . Low Security (%) 99 | 100 100 99 100 100 . 100 Level 1 . | . . . . . . . Level 2 . | . . . . . . . Level 3 . | . . . . . . . Level 4 . | . . . . . . . Level 5 . | . . . . . . . High Security . | . . . . . . . Max Security . | . . . . . . . Squads Dispatched . | . . . . . . . Investigation . | . . . . . . . Extermination . | . . . . . . . Reinforcement . | . . . . . . . Assault . | . . . . . . . Garrison . | . . . . . . . Intercept . | . . . . . . . Construction Impeded . | . . . . . . . Haulers Reinforced . | . . . . . . . Stealth | -11 -10 -10 -9 -9 -9 -8 --------- Run | Scr Mat Min Mat Min Exi Min Distress Signals 4 | . 2 . 2 . . . Communications Jammed . | . . . . . . . Distress Signals . | . . . . . . . Times Spotted 37 | . 8 5 10 2 . 12 Peak Tracking Total 6 | . 6 3 5 2 . 3 Tactical Retreats 3 | . . . . . . 3 Traps | -11 -10 -10 -9 -9 -9 -8 ------- Run | Scr Mat Min Mat Min Exi Min Traps Triggered . | . . . . . . . Indirectly . | . . . . . . . Trap Hack Attempts . | . . . . . . . Triggered . | . . . . . . . Disarmed . | . . . . . . . Reprogrammed . | . . . . . . . Reused 2 | . . . 2 . . . Traps Extracted . | . . . . . . . Installed 3 | . . . 3 . . . Triggered 2 | . . . 2 . . . Machines | -11 -10 -10 -9 -9 -9 -8 ---------- Run | Scr Mat Min Mat Min Exi Min Machines Disabled 5 | . 2 3 . . . . Max in Single Turn 2 | . 2 1 . . . . Machines Sabotaged . | . . . . . . . Garrisons Compromised . | . . . . . . . Overloaded Fab Kills . | . . . . . . . Fab Network Shutdowns . | . . . . . . . Hacking | -11 -10 -10 -9 -9 -9 -8 --------- Run | Scr Mat Min Mat Min Exi Min Machines Accessed 4 | . 2 . 2 . . . Terminals 4 | . 2 . 2 . . . Fabricators . | . . . . . . . Repair Stations . | . . . . . . . Recycling Units . | . . . . . . . Scanalyzers . | . . . . . . . Garrison Access . | . . . . . . . Total Hacks 17 | . 9 . 8 . . . Successful 12 | . 7 . 5 . . . Failed 5 | . 2 . 3 . . . Catastrophic 2 | . . . 2 . . . Database Lockouts . | . . . . . . . Manual 15 | . 6 . 8 . 1 . Terminals 17 | . 9 . 8 . . . Fabricators . | . . . . . . . Repair Stations . | . . . . . . . Recycling Units . | . . . . . . . Scanalyzers . | . . . . . . . Garrison Access . | . . . . . . . Terminal Hacks 4 | . 3 . 1 . . . Prototype ID Bank 1 | . 1 . . . . . Locate Traps 1 | . 1 . . . . . Zone Layout 2 | . 1 . 1 . . . Fabricator Hacks . | . . . . . . . Repair Station Hacks . | . . . . . . . Recycling Unit Hacks . | . . . . . . . Scanalyzer . | . . . . . . . Garrison Access Hacks . | . . . . . . . Unauthorized Hacks 8 | . 4 . 4 . . . Terminals 8 | . 4 . 4 . . . Track 3 | . 2 . 1 . . . Botnet 4 | . 2 . 2 . . . Operators 1 | . . . 1 . . . Fabricators . | . . . . . . . Repair Stations . | . . . . . . . Recycling Units . | . . . . . . . Scanalyzers . | . . . . . . . Garrison Access . | . . . . . . . Data Cores Recovered . | . . . . . . . Used . | . . . . . . . Hacking Detections 4 | . 2 . 2 . . . Full Trace Events . | . . . . . . . Feedback Events . | . . . . . . . Feedback Blocked . | . . . . . . . Robot Schematics Acquired . | . . . . . . . Robots Built . | . . . . . . . Matter . | . . . . . . . Time . | . . . . . . . Total Robot Build Rating . | . . . . . . . Part Schematics Acquired . | . . . . . . . Parts Built . | . . . . . . . Matter . | . . . . . . . Time . | . . . . . . . Total Part Build Rating . | . . . . . . . Parts Repaired . | . . . . . . . Time . | . . . . . . . Parts Recycled . | . . . . . . . Recycled Matter . | . . . . . . . Retrieved Matter . | . . . . . . . Retrieved Components . | . . . . . . . Parts Scanalyzed . | . . . . . . . Part Schematics Acquired . | . . . . . . . Parts Damaged . | . . . . . . . Bothacking | -11 -10 -10 -9 -9 -9 -8 ------------ Run | Scr Mat Min Mat Min Exi Min Used RIF Installer . | . . . . . . . Robots Hacked . | . . . . . . . Non-combat . | . . . . . . . Combat . | . . . . . . . Robot Hacks Applied . | . . . . . . . Relay Couplers Released . | . . . . . . . Robots Rewired . | . . . . . . . Allies Hacked . | . . . . . . . Hacks Repelled . | . . . . . . . Allies | -11 -10 -10 -9 -9 -9 -8 -------- Run | Scr Mat Min Mat Min Exi Min Total Allies 3 | . . 3 . . . . Largest Group 3 | . . 3 3 . . . Highest-Rated Group 40 | . . 40 40 . . . Highest-Rated Ally 16 | . . 16 16 . . . Total Orders 1 | . . . 1 . . . GOTO 1 | . . . 1 . . . Ally Attacks 35 | . . 1 34 . . . Total Damage 416 | . . 12 404 . . . Kills 6 | . . 1 5 . . . Allies Corrupted . | . . . . . . . Allies Melted . | . . . . . . . Intel | -11 -10 -10 -9 -9 -9 -8 ------- Run | Scr Mat Min Mat Min Exi Min Robot Analysis Total . | . . . . . . . Derelict Logs Recovered 2 | . . 2 . . . . Drone Launches . | . . . . . . . Drone Recoveries . | . . . . . . . Exploration | -11 -10 -10 -9 -9 -9 -8 ------------- Run | Scr Mat Min Mat Min Exi Min Turns Passed 3302 | 56 263 824 506 303 865 485 Spaces Moved 2675 | 46 273 694 292 229 720 421 Core 504 | 11 . 274 25 . . 194 Treads 1 | . . . . . . 1 Legs 1502 | 35 39 2 267 229 720 210 Wheels . | . . . . . . . Hover 656 | . 234 418 . . . 4 Flight 12 | . . . . . . 12 Fastest Speed 50 | 50 56 56 120 120 120 50 Average Speed 107 | 105 65 101 138 120 120 93 Slowest Speed 200 | 120 130 150 200 120 120 200 Overloaded Moves . | . . . . . . . Propulsion Burnouts . | . . . . . . . Robots Hopped . | . . . . . . . Cave-ins Triggered . | . . . . . . . Time Travels 1 | . . . . . 1 . Exploration Rate (%) 54 | 4 44 93 25 50 93 73 Regions Visited 6 Branch Regions 4 Pre-discovered Areas . | . . . . . . . Known Exits Taken 5 | . 1 1 1 1 1 . Unknown Exits Taken 1 | 1 . . . . . . Scrap Searched 5 | . . 1 . 2 . 2 Spaces Dug . | . . . . . . . Terrain Destroyed 37 | . 16 1 . . . 20 Melee . | . . . . . . . Projectile 1 | . . 1 . . . . AOE 36 | . 16 . . . . 20 Actions | -11 -10 -10 -9 -9 -9 -8 --------- Run | Scr Mat Min Mat Min Exi Min Total 2950 | 51 314 776 354 248 721 486 Wait 84 | . 2 42 7 4 . 29 Move 2669 | 45 272 693 291 228 719 421 Hop . | . . . . . . . Pick Up 7 | 1 1 4 . 1 . . Fast Attach 34 | 5 7 4 10 2 . 6 Attach 4 | . . 1 . . 1 2 Detach 3 | . . 1 . 1 1 . Swap 2 | . . . 1 1 . . Drop 15 | . 4 2 6 2 . 1 Fire 47 | . 28 6 5 . . 8 Melee 73 | . . 15 31 9 . 18 Ram 9 | . . 8 . . . 1 Kick . | . . . . . . . Crush . | . . . . . . . Escape Stasis . | . . . . . . . Rewire . | . . . . . . . Trap 3 | . . . 3 . . . Miscellaneous . | . . . . . . . Route ------- -11/Scrapyard -10/Materials (discovered 3 exits: *Mat x2 / *Min) -10/Mines (discovered 2 exits: *Mat x2) -9/Materials -9/Mines (discovered 2 exits: *Mat / *Exi) -9/Exiles (discovered 2 exits: *Min x2) -8/Mines (discovered 1 exit: *Mat) History --------- Turn | Location | Event 6 | -11/Scrapyard | Discovered new exit (range 15) 57 | -11/Scrapyard | Entered Materials 159 | -10/Materials | Discovered new exit (range 10) 159 | -10/Materials | Discovered new exit (range 18) 259 | -10/Materials | Discovered new exit (range 16) 315 | -10/Materials | Identified exit to Mines 320 | -10/Materials | Entered Mines 389 | -10/Mines | Discovered new exit (range 7) 391 | -10/Mines | Lost 5 parts (1p1n1u2w) 393 | -10/Mines | Identified exit to Materials 399 | -10/Mines | Learned Materials garrison access intel 410 | -10/Mines | A weapon hastily lodged in a ceiling crevice suddenly fell to the ground 524 | -10/Mines | Build established: Mutant 651 | -10/Mines | Discovered exit to Materials (range 3) 655 | -10/Mines | Assisted by bots powering up and referring to "LRC-V3" 750 | -10/Mines | Received a Rocket Launcher from a helpful Derelict 780 | -10/Mines | Learned Materials emergency access door positions 813 | -10/Mines | Found a hidden stash of uninstalled traps 1144 | -10/Mines | Entered Materials 1144 | -9/Materials | Accompanied by 3 allies 1144 | -9/Materials | Evolved 2 slots: Propulsion x1, Utility x1 1634 | -9/Materials | Discovered new exit (range 6) 1639 | -9/Materials | Identified exit to Mines 1650 | -9/Materials | Entered Mines 1766 | -9/Mines | Build established: Scavenger-Mutant 1794 | -9/Mines | Discovered new exit (range 8) 1802 | -9/Mines | Identified exit to Materials 1948 | -9/Mines | Deemed a non-threat by the Exiles lab entrance 1948 | -9/Mines | Discovered new exit (range 5) 1952 | -9/Mines | Identified exit to Exiles 1953 | -9/Mines | Entered Exiles 1981 | -9/Exiles | Met 8R-AWN 2003 | -9/Exiles | Met EX-HEX 2083 | -9/Exiles | Met EX-DEC 2140 | -9/Exiles | Visited The Gauntlet 2248 | -9/Exiles | Build established: Mutant 2337 | -9/Exiles | Met EX-BIN 2361 | -9/Exiles | Aligned with FarCom system 2363 | -9/Exiles | Given EX-Vault access code 2412 | -9/Exiles | Opened EX-Vault 2420 | -9/Exiles | Found Prototype Device 2420 | -9/Exiles | Identified Chronowheel 2420 | -9/Exiles | Activated Chronowheel 2420 | -9/Exiles | Spacetime reconverged on an earlier point 2446 | -9/Exiles | Warned to stay clear of 0b10 Research branches 2522 | -9/Exiles | Discovered new exit (range 10) 2530 | -9/Exiles | Identified exit to Mines 2658 | -9/Exiles | Discovered exit to Mines (range 14) 2818 | -9/Exiles | Entered Mines 2830 | -8/Mines | Discovered exit to Materials (range 9) 3169 | -8/Mines | Core integrity fell below 50% 3184 | -8/Mines | Core integrity fell below 20% 3221 | -8/Mines | Lost 9 parts (1p2n1u5w) 3303 | -8/Mines | Destroyed by G-50 Soldier with Heavy Laser Last Messages --------------- 03186_ Acquired Sml. Laser. 03188_ G-47 Trooper destroyed. 03190_ Sml. Laser destroyed. 03236_ Searching scrap... 03236_ Found 33 Matter. 03236_ Found Imp. Terrain Scanner. 03236_ Found Weight Redist. System. 03236_ Found Adv. Treads. 03236_ Found Armor Integrity Analyzer. 03237_ Acquired 22 matter. 03237_ Acquired Armor Integrity Analyzer. 03239_ Acquired 10 matter. 03277_ Searching scrap... 03277_ Found 29 Matter. 03277_ Found Beam Rifle. 03278_ Acquired Beam Rifle. 03279_ Acquired 10 matter. 03288_ Acquired Adv. Treads. 03290_ Acquired 1 matter. 03297_ Acquired 9 matter. Map ----- +----------------------------------------------------+ | | | | | | | | | | | | | | | | | | | | | | | | | | | | | | | | | | | | | | | ??????????????????????????????????????? | | ??????????????????????????????????????? | | ??????????????????#########???????????? | | ????????????????? g ????????????? | | ?????????????#### gg ??????????????? | | ?????????????# ""??????????????????? | | ?????????????#@ #?????????????????????? | | ?????????????# %#?????????????????????? | | ?????????????# #?????????????????????? | | ?????????????# #?????????????????????? | | ?????????????# #?????????????????????? | | ?????????????# #?????????????????????? | | ?????????????# #?????????????????????? | | ?????????????#! #?????????????????????? | | ?????????????# !#?????????????????????? | | ?????????????# #?????????????????????? | | ?????????????# #?????????????????????? | | ?????????????# #?????????????????????? | | ?????????????# #?????????????????????? | | ????????????## #?????????????????????? | | ????????##### #??????###????????????? | | ???????## #????## ##???????????? | | ???????# ##??## #???????????? | | ???????# #### #???????????? | | ???????# #???????###??? | | ???????# ##??????? ??? | | ???????## ####????????# #??? | | ????????##### ##???????????# #??? | | ???????????## ######???????# #??? | | ???????????# ## ######### #??? | | ??????????## #??? | +----------------------------------------------------+ Best States ------------- Heat Dissipation 42 Energy Generation 14 Energy Capacity 280 Matter Stores 300 Matter Capacity 300 Sight Range 16 Robot Scan Range 10 Terrain Scan Density 10 Base Temperature (-) 100 Evasion (%) 53 Targeting Accuracy 6 Armor Integrity Analysis 33 Recoil Reduction 1 Item Schematics ----------------- None Robot Schematics ------------------ None Fabricated ------------ Nothing Alien Tech Used ----------------- None Achievements -------------- None Challenges ------------ None Game ------ Seed ReactionLegAutocannon Manual? 0 Play Time 00:27:55 Cumulative 255.9 hours Start 2020.08.27 @ 18:00:59 End 2020.08.27 @ 18:29:27 Sessions 1 Manual Loads 0 Difficulty Rogue Special Mode None Game No. 69 Rogue 50 Adventurer 19 Explorer 0 Win Type - Total 4 Types 2/0/1/1/0/0/0 Lore% 66 Gallery% 70 Achievement% 59 Wizard Run 0 Options --------- ASCII 0 Keyboard 0 Movement Mouse Keybinds 0 Fullscreen 1 Font 14/SmallcapsGlow Map View 84x54 Tactical HUD 1 Map Filters NONE Filters NONE Steam 1 RUN: 29627214-a6b6-4365-b81a-b3c904d786b4